fUST/lending_fUST_20241116
["ID","MTS","AMOUNT","RATE_DAILY","PERIOD"]
[342339870,1731753034263,-5160.44,0.00013698,2]
[342339871,1731753034272,-151.0,0.00013698,2]
[342339872,1731753034282,-500.0,0.00013698,2]
[342339873,1731753034291,-151.0,0.00013698,2]
[342339874,1731753034300,-152.864727,0.00013698,2]
[342339875,1731753034310,-500.0,0.00013698,2]
[342339876,1731753034319,-1462.04,0.00013698,2]
[342339877,1731753034328,-500.0,0.00013698,2]
[342339878,1731753034337,-500.0,0.00013698,2]
[342339879,1731753034347,-500.0,0.00013698,2]
[342339880,1731753034356,-151.0,0.00013698,2]
[342339881,1731753034366,-151.0,0.00013698,2]
[342339882,1731753034376,-1169.05,0.00013698,2]
[342339883,1731753034385,-151.0,0.00013698,2]
[342339884,1731753034395,-2812.58,0.00013698,2]
[342339885,1731753034404,-270.472861,0.00013698,2]
[342339886,1731753034413,-151.0,0.00013698,2]
[342339887,1731753034422,-156.682285,0.00013698,2]
[342339888,1731753034431,-500.0,0.00013698,2]
[342339889,1731753034440,-500.0,0.00013698,2]
[342339890,1731753034450,-500.0,0.00013698,2]
[342339891,1731753034459,-698.61,0.00013698,2]
[342339892,1731753034469,-500.0,0.00013698,2]
[342339893,1731753034478,-2106.41,0.00013698,2]
[342339894,1731753034487,-500.0,0.00013698,2]
[342339895,1731753034496,-500.0,0.00013698,2]
[342339896,1731753034506,-19247.55,0.00013698,2]
[342339897,1731753034515,-17465.62,0.00013698,2]
[342339898,1731753034525,-998.34,0.00013698,2]
[342339899,1731753034534,-395.02833456,0.00013698,2]
[342339900,1731753034543,-500.0,0.00013698,2]
[342339901,1731753034553,-405.35202735,0.00013698,2]
[342339902,1731753034563,-500.0,0.00013698,2]
[342339903,1731753034572,-500.0,0.00013698,2]
[342339904,1731753034581,-15872.54,0.00013698,2]
[342339905,1731753034590,-153.0,0.00013699,2]
[342339906,1731753034600,-153.0,0.00013699,2]
[342339907,1731753034609,-153.0,0.00013699,2]
[342339908,1731753034618,-11251.378937,0.00013699,2]
[342339909,1731753034629,-868.754861,0.00013699,2]
[342339910,1731753034639,-500.0,0.00013699,2]
[342339911,1731753034649,-500.0,0.00013699,2]
[342339912,1731753034659,-500.0,0.00013699,2]
[342339913,1731753034667,-500.0,0.00013699,2]
[342339914,1731753034677,-238.82329505,0.00013699,2]
[342339915,1731753034686,-500.0,0.00013699,2]
[342339916,1731753034695,-500.0,0.00013699,2]
[342339917,1731753034705,-277.2471467,0.00013699,2]
[342339918,1731753034714,-500.0,0.00013699,2]
[342339919,1731753034724,-500.0,0.00013699,2]
[342339920,1731753034733,-500.0,0.00013699,2]
[342339921,1731753034743,-300.0,0.00013699,2]
[342339922,1731753034752,-500.0,0.00013699,2]
[342339923,1731753034762,-500.0,0.00013699,2]
[342339924,1731753034771,-500.0,0.00013699,2]
[342339925,1731753034780,-500.0,0.00013699,2]
[342339926,1731753034790,-500.0,0.00013699,2]
[342339927,1731753034799,-217.67301427,0.00013699,2]
[342339928,1731753034808,-500.0,0.00013699,2]
[342339929,1731753034818,-374.97378485,0.00013699,2]
[342339930,1731753034827,-151.0,0.00013699,2]
[342339931,1731753034836,-150.112233,0.000137,2]
[342339932,1731753034845,-151.0,0.0001375,2]
[342339933,1731753034855,-500.0,0.0001375,2]
[342339934,1731753034864,-3200.0,0.0001375,2]
[342339935,1731753034873,-150.112233,0.000138,2]
[342339936,1731753034882,-442.063635,0.00013849,2]
[342339937,1731753034891,-157.567138,0.00013849,2]
[342339938,1731753034901,-157.567138,0.00013849,2]
[342339939,1731753034911,-1234.93882238,0.00013852,2]
[342339940,1731753034920,-2548.72273965,0.00013872,2]
[342339941,1731753034929,-150.112233,0.000139,2]
[342339942,1731753034939,-150.112233,0.000139,2]
[342339943,1731753034948,-500.0,0.00013972,2]
[342339944,1731753034958,-382.3760248,0.00013972,2]
[342339945,1731753034967,-500.0,0.00013972,2]
[342339946,1731753034977,-500.0,0.00013972,2]
[342339947,1731753034986,-500.0,0.00013972,2]
[342339948,1731753034996,-500.0,0.00013972,2]
[342339949,1731753035005,-500.0,0.00013972,2]
[342339950,1731753035015,-500.0,0.00013972,2]
[342339951,1731753035025,-294.23870151,0.00013972,2]
[342339952,1731753035034,-500.0,0.00013972,2]
[342339953,1731753035045,-500.0,0.00013972,2]
[342339954,1731753035054,-500.0,0.00013972,2]
[342339955,1731753035066,-500.0,0.00013972,2]
[342339956,1731753035075,-500.0,0.00013972,2]
[342339957,1731753035085,-500.0,0.00013972,2]
[342339958,1731753035094,-500.0,0.00013972,2]
[342339959,1731753035103,-500.0,0.00013972,2]
[342339960,1731753035113,-500.0,0.00013972,2]
[342339961,1731753035123,-500.0,0.00013972,2]
[342339962,1731753035133,-500.0,0.00013972,2]
[342339963,1731753035142,-500.0,0.00013972,2]
[342339964,1731753035151,-500.0,0.00013972,2]
[342339965,1731753035160,-2230.47,0.00013972,2]
[342339966,1731753035170,-500.0,0.00013972,2]
[342339967,1731753035179,-500.0,0.00013972,2]
[342339968,1731753035189,-500.0,0.00013972,2]
[342339969,1731753035199,-203.44288589,0.00013972,2]
[342339970,1731753035208,-500.0,0.00013972,2]
[342339971,1731753035218,-500.0,0.00013972,2]
[342339972,1731753035228,-511.14656472,0.00013972,2]
[342339973,1731753035237,-500.0,0.00013972,2]
[342339974,1731753035247,-500.0,0.00013972,2]
[342339975,1731753035256,-1946.38,0.00013972,2]
[342339976,1731753035266,-593.37,0.00013972,2]
[342339977,1731753035276,-500.0,0.00013972,2]
[342339978,1731753035286,-500.0,0.00013972,2]
[342339979,1731753035295,-500.0,0.00013972,2]
[342339980,1731753035305,-500.0,0.00013972,2]
[342339981,1731753035315,-500.0,0.00013972,2]
[342339982,1731753035324,-500.0,0.00013972,2]
[342339983,1731753035333,-845.73,0.00013972,2]
[342339984,1731753035343,-404.65201383,0.00013972,2]
[342339985,1731753035352,-2336.0,0.00013972,2]
[342339986,1731753035362,-854.1,0.00013972,2]
[342339987,1731753035371,-1059.08,0.00013972,2]
[342339988,1731753035380,-500.0,0.00013972,2]
[342339989,1731753035390,-1716.62,0.00013972,2]
[342339990,1731753035399,-2139.67,0.00013972,2]
[342339991,1731753035409,-610.1,0.00013972,2]
[342339992,1731753035419,-492.55345582,0.00013972,2]
[342339993,1731753035428,-500.0,0.00013972,2]
[342339994,1731753035438,-500.0,0.00013972,2]
[342339995,1731753035448,-1653.44,0.00013972,2]
[342339996,1731753035457,-500.0,0.00013972,2]
[342339997,1731753035467,-500.0,0.00013972,2]
[342339998,1731753035476,-475.36214997,0.00013972,2]
[342339999,1731753035486,-500.0,0.00013972,2]
[342340000,1731753035495,-616.09,0.00013972,2]
[342340001,1731753035504,-1636.43,0.00013972,2]
[342340002,1731753035514,-500.0,0.00013972,2]
[342340003,1731753035524,-500.0,0.00013972,2]
[342340004,1731753035533,-500.0,0.00013972,2]
[342340005,1731753035542,-500.0,0.00013972,2]
[342340006,1731753035551,-1195.15,0.00013972,2]
[342340007,1731753035563,-1219.59,0.00013972,2]
[342340008,1731753035572,-519.98,0.00013972,2]
[342340009,1731753035581,-500.0,0.00013972,2]
[342340010,1731753035590,-500.0,0.00013972,2]
[342340011,1731753035600,-500.0,0.00013972,2]
[342340012,1731753035609,-500.0,0.00013972,2]
[342340013,1731753035618,-500.0,0.00013972,2]
[342340014,1731753035627,-500.0,0.00013972,2]
[342340015,1731753035637,-291.4932983,0.00013972,2]
[342340016,1731753035646,-500.0,0.00013972,2]
[342340017,1731753035655,-500.0,0.00013972,2]
[342340018,1731753035664,-500.0,0.00013972,2]
[342340019,1731753035673,-500.0,0.00013972,2]
[342340020,1731753035682,-1643.8,0.00013972,2]
[342340021,1731753035691,-3255.04672335,0.00013972,2]
[342340073,1731753038207,-618.60924786,0.00013583,2]
[342340074,1731753038237,-497.39075214,0.00013583,2]
[342340075,1731753038246,-500.0,0.00013698,2]
[342340076,1731753038255,-463.72010936,0.00013698,2]
[342340077,1731753038348,-280.05989064,0.00013698,2]
[342340078,1731753038361,-500.0,0.00013972,2]
[342340079,1731753038373,-500.0,0.00013972,2]
[342340080,1731753038384,-500.0,0.00013972,2]
[342340081,1731753038394,-500.0,0.00013972,2]
[342340082,1731753038405,-500.0,0.00013972,2]
[342340083,1731753038414,-11.09878973,0.00013972,2]
[342340130,1731753042993,-159.24958348,0.00012183,2]
[342340131,1731753043002,-394.01083059,0.00013583,2]
[342340132,1731753043014,-1565.25,0.00013583,2]
[342340133,1731753043025,-426.73916941,0.00013583,2]
[342340134,1731753043034,-500.0,0.00013698,2]
[342340135,1731753043045,-507.1112677,0.00013698,2]
[342340136,1731753043054,-105.46469426,0.00013972,2]
[342340190,1731754154806,-1136.7353333,0.00012058,2]
[342340191,1731754154832,-863.8095143,0.00012348,2]
[342340192,1731754154855,-300.0,0.00012447,2]
[342340193,1731754154878,-300.0,0.00012447,2]
[342340194,1731754154902,-13707.0990109,0.00012448,2]
[342340195,1731754154929,-517.69602116,0.00012566,2]
[342340196,1731754154956,-158.2308701,0.00012666,2]
[342340197,1731754154979,-194.81683115,0.00013297,2]
[342340198,1731754155002,-1275.12726026,0.00013298,2]
[342340199,1731754155025,-754.69027803,0.00013398,2]
[342340200,1731754155049,-79549.34570455,0.00013398,2]
[342340201,1731754155075,-51242.44917625,0.00013398,2]
[342340251,1731754232094,-606.34803731,0.00013398,2]
[342340279,1731754238495,-1000.92543282,0.00013398,2]
[342340280,1731754238886,-4521.90520043,0.00013398,2]
[342340281,1731754238898,-588.26823525,0.00013398,2]
[342340304,1731754240011,-1386.71939966,0.00013398,2]
[342340305,1731754240023,-1000.0,0.00013598,2]
[342340307,1731754240032,-300.0,0.00013621,2]
[342340309,1731754240041,-300.0,0.00013621,2]
[342340310,1731754240051,-530.0,0.00013622,2]
[342340311,1731754240061,-1112.0,0.00013622,2]
[342340312,1731754240070,-2386.0,0.00013622,2]
[342340313,1731754240079,-503.12685202,0.00013698,2]
[342340314,1731754240089,-500.0,0.00013698,2]
[342340315,1731754240098,-500.0,0.00013698,2]
[342340316,1731754240108,-500.0,0.00013698,2]
[342340317,1731754240117,-151.0,0.00013698,2]
[342340318,1731754240130,-500.0,0.00013698,2]
[342340319,1731754240140,-500.0,0.00013698,2]
[342340320,1731754240149,-500.0,0.00013698,2]
[342340321,1731754240158,-209.713,0.00013698,2]
[342340322,1731754240167,-500.0,0.00013698,2]
[342340323,1731754240176,-500.0,0.00013698,2]
[342340324,1731754240185,-500.0,0.00013698,2]
[342340325,1731754240195,-500.0,0.00013698,2]
[342340326,1731754240203,-500.0,0.00013698,2]
[342340327,1731754240212,-415.09638186,0.00013698,2]
[342340342,1731754243112,-84.90361814,0.00013698,2]
[342340343,1731754243122,-333.42058358,0.00013698,2]
[342340344,1731754243134,-500.0,0.00013698,2]
[342340345,1731754243143,-610.75,0.00013698,2]
[342340346,1731754243153,-500.0,0.00013698,2]
[342340347,1731754243162,-500.0,0.00013698,2]
[342340348,1731754243171,-173.42426815,0.00013698,2]
[342340349,1731754243183,-1263.17931357,0.00013698,2]
[342340350,1731754243194,-607.99641828,0.00013698,2]
[342340351,1731754243203,-238.70107635,0.00013698,2]
[342340402,1731754246041,-204.63474518,0.00011958,2]
[342340404,1731754246050,-107.27828977,0.00013698,2]
[342340451,1731754316227,192.31,0.00010959,2]
[342340452,1731754326749,160.25,0.00010959,2]
[342340453,1731754337266,801.3,0.00010959,2]
[342340525,1731755432465,-1053.138134,0.00012551,2]
[342340531,1731755438461,-1172.5083951,0.00012551,2]
[342340533,1731755438471,-300.0,0.0001257,2]
[342340535,1731755438480,-300.0,0.0001257,2]
[342340537,1731755438489,-9590.89362403,0.00012571,2]
[342340538,1731755438646,-2419.02761748,0.00012571,2]
[342340539,1731755438658,-4569.35,0.00012571,2]
[342340540,1731755438669,-4567.08368135,0.00012571,2]
[342340541,1731755438712,-3713.64507714,0.00012571,2]
[342340542,1731755438722,-154.849968,0.00013511,2]
[342340543,1731755438731,-190.122889,0.00013511,2]
[342340544,1731755438747,-759.49113442,0.00013598,2]
[342340545,1731755438756,-5734.70502252,0.00013598,2]
[342340574,1731755440181,-1427.63195803,0.00013598,2]
[342340577,1731755440232,-3544.86445725,0.00013598,2]
[342340605,1731755443272,-45688.53904206,0.00013598,2]
[342340606,1731755443281,-1000.0,0.00013598,2]
[342340607,1731755443290,-530.0,0.00013622,2]
[342340608,1731755443299,-1112.0,0.00013622,2]
[342340609,1731755443308,-2386.0,0.00013622,2]
[342340610,1731755443318,-9651.8390233,0.00013673,2]
[342340611,1731755443333,-190.122889,0.0001368,2]
[342340612,1731755443342,-500.0,0.00013698,2]
[342340613,1731755443351,-500.5298223,0.00013698,2]
[342340614,1731755443360,-500.0,0.00013698,2]
[342340615,1731755443368,-500.0,0.00013698,2]
[342340616,1731755443378,-500.0,0.00013698,2]
[342340617,1731755443387,-358.22405148,0.00013698,2]
[342340618,1731755443396,-500.0,0.00013698,2]
[342340620,1731755443407,-500.0,0.00013698,2]
[342340621,1731755443416,-423.56861961,0.00013698,2]
[342340622,1731755443428,-76.43138039,0.00013698,2]
[342340623,1731755443439,-500.0,0.00013698,2]
[342340624,1731755443448,-500.0,0.00013698,2]
[342340625,1731755443458,-500.0,0.00013698,2]
[342340626,1731755443467,-500.0,0.00013698,2]
[342340627,1731755443476,-500.0,0.00013698,2]
[342340628,1731755443485,-500.0,0.00013698,2]
[342340629,1731755443495,-500.0,0.00013698,2]
[342340630,1731755443504,-500.0,0.00013698,2]
[342340631,1731755443513,-500.0,0.00013698,2]
[342340632,1731755443522,-254.8916885,0.00013698,2]
[342340633,1731755443534,-245.1083115,0.00013698,2]
[342340634,1731755443544,-500.0,0.00013698,2]
[342340635,1731755443553,-500.0,0.00013698,2]
[342340636,1731755443563,-370.08467151,0.00013698,2]
[342340673,1731755446337,-129.91532849,0.00013698,2]
[342340674,1731755446347,-496.76762749,0.00013698,2]
[342340748,1731756523613,794.88390528,0.00025,120]
[342340800,1731756632535,-759.18588217,0.00012028,3]
[342340801,1731756632546,-300.0,0.00012078,2]
[342340802,1731756632557,-300.0,0.00012078,2]
[342340803,1731756632567,-1461.67622625,0.00012079,2]
[342340804,1731756632581,-367.86481765,0.00012079,2]
[342340805,1731756632599,-816.223902,0.00012079,2]
[342340886,1731756638638,-311.04339504,0.00012079,2]
[342340887,1731756638780,-2738.73,0.00012079,2]
[342340888,1731756639089,-2175.65739476,0.00012079,2]
[342340905,1731756640417,-522.82500179,0.00012079,2]
[342341005,1731756643770,-753.66719047,0.00012079,2]
[342341007,1731756643781,-520.0,0.00012079,2]
[342341009,1731756643792,-917.98299265,0.00012079,2]
[342341011,1731756643803,-5680.99341064,0.00012079,2]
[342341329,1731757718174,80007.07066374,0.00026,120]
[342341454,1731757833134,-415.8202528,0.00011866,2]
[342341456,1731757833146,-300.0,0.00011943,2]
[342341458,1731757833158,-300.0,0.00011943,2]
[342341459,1731757833169,-207.54628954,0.0001205,2]
[342341460,1731757833215,-10288.47806856,0.0001205,2]
[342341461,1731757833225,-3091.6403568,0.00012075,2]
[342341462,1731757833236,-11255.0393173,0.00012202,2]
[342341463,1731757833247,-2613.7340627,0.00012237,2]
[342341464,1731757833257,-428.6661847,0.00012246,2]
[342341465,1731757833267,-2302.1145944,0.00012305,2]
[342341466,1731757833278,-420.0,0.00013112,2]
[342341467,1731757833288,-420.0,0.00013137,2]
[342341468,1731757833298,-530.0,0.0001352,2]
[342341469,1731757833308,-1112.0,0.0001352,2]
[342341470,1731757833317,-2386.0,0.0001352,2]
[342341471,1731757833328,-567.82084109,0.00013598,2]
[342341472,1731757833338,-6525.39641585,0.00013598,2]
[342341473,1731757833348,-2534.660927,0.00013598,2]
[342341474,1731757833359,-1000.0,0.00013598,2]
[342341475,1731757833373,-899.98867149,0.00013598,2]
[342341476,1731757833383,-907.21492698,0.00013697,2]
[342341477,1731757833394,-3.23237251,0.00013698,2]
[342341478,1731757833404,-500.0,0.00013698,2]
[342341479,1731757833415,-500.0,0.00013698,2]
[342341480,1731757833426,-469.42260389,0.00013698,2]
[342341481,1731757833435,-500.0,0.00013698,2]
[342341482,1731757833445,-500.0,0.00013698,2]
[342341483,1731757833454,-500.0,0.00013698,2]
[342341484,1731757833464,-152.501815,0.00013698,2]
[342341485,1731757833474,-370.31916317,0.00013698,2]
[342341486,1731757833484,-500.0,0.00013698,2]
[342341487,1731757833494,-170.8263531,0.00013698,2]
[342341488,1731757833503,-500.0,0.00013698,2]
[342341489,1731757833514,-500.0,0.00013698,2]
[342341490,1731757833524,-500.0,0.00013698,2]
[342341491,1731757833533,-500.0,0.00013698,2]
[342341492,1731757833543,-500.0,0.00013698,2]
[342341493,1731757833552,-500.0,0.00013698,2]
[342341494,1731757833562,-500.0,0.00013698,2]
[342341495,1731757833571,-500.0,0.00013698,2]
[342341496,1731757833581,-500.0,0.00013698,2]
[342341497,1731757833590,-500.0,0.00013698,2]
[342341498,1731757833600,-500.0,0.00013698,2]
[342341499,1731757833609,-500.0,0.00013698,2]
[342341500,1731757833622,-500.0,0.00013698,2]
[342341501,1731757833632,-516.51705417,0.00013698,2]
[342341502,1731757833642,-500.0,0.00013698,2]
[342341503,1731757833652,-500.0,0.00013698,2]
[342341504,1731757833662,-152.60671119,0.00013698,2]
[342341505,1731757833672,-500.0,0.00013698,2]
[342341506,1731757833681,-500.0,0.00013698,2]
[342341507,1731757833691,-500.0,0.00013698,2]
[342341508,1731757833701,-460.16145474,0.00013698,2]
[342341509,1731757833712,-500.0,0.00013698,2]
[342341510,1731757833722,-369.63832465,0.00013698,2]
[342341511,1731757833732,-285.52651394,0.00013698,2]
[342341512,1731757833742,-500.0,0.00013698,2]
[342341513,1731757833751,-360.8051948,0.00013698,2]
[342341514,1731757833762,-500.0,0.00013698,2]
[342341515,1731757833772,-501.67363472,0.00013698,2]
[342341516,1731757833781,-469.70926274,0.00013698,2]
[342341562,1731757838891,-30.29073726,0.00013698,2]
[342341564,1731757838900,-502.65638944,0.00013698,2]
[342341566,1731757838909,-500.0,0.00013698,2]
[342341568,1731757838919,-501.79942633,0.00013698,2]
[342341570,1731757838928,-528.52825277,0.00013698,2]
[342341572,1731757838938,-504.50287626,0.00013698,2]
[342341574,1731757838947,-500.0,0.00013698,2]
[342341576,1731757838957,-500.0,0.00013698,2]
[342341578,1731757838967,-500.0,0.00013698,2]
[342341580,1731757838976,-500.0,0.00013698,2]
[342341582,1731757838985,-501.60122159,0.00013698,2]
[342341583,1731757838994,-505.59752263,0.00013698,2]
[342341585,1731757839003,-307.609204,0.00013698,2]
[342341586,1731757839013,-500.0,0.00013698,2]
[342341588,1731757839023,-500.0,0.00013698,2]
[342341595,1731757839157,-166.20039571,0.00013698,2]
[342341596,1731757839167,-500.0,0.00013698,2]
[342341597,1731757839178,-500.0,0.00013698,2]
[342341598,1731757839189,-500.0,0.00013698,2]
[342341599,1731757839198,-500.0,0.00013698,2]
[342341600,1731757839207,-506.50628866,0.00013698,2]
[342341601,1731757839217,-535.22629982,0.00013698,2]
[342341602,1731757839226,-500.0,0.00013698,2]
[342341603,1731757839235,-500.0,0.00013698,2]
[342341604,1731757839247,-561.29019266,0.00013698,2]
[342341605,1731757839256,-566.09161638,0.00013698,2]
[342341606,1731757839265,-500.0,0.00013698,2]
[342341607,1731757839274,-500.0,0.00013698,2]
[342341608,1731757839284,-500.0,0.00013698,2]
[342341609,1731757839293,-514.72771561,0.00013698,2]
[342341610,1731757839303,-500.0,0.00013698,2]
[342341611,1731757839312,-500.0,0.00013698,2]
[342341612,1731757839321,-500.0,0.00013698,2]
[342341613,1731757839331,-500.91881702,0.00013698,2]
[342341614,1731757839341,-500.0,0.00013698,2]
[342341615,1731757839349,-500.0,0.00013698,2]
[342341616,1731757839359,-500.57155544,0.00013698,2]
[342341617,1731757839372,-475.88148842,0.00013698,2]
[342341618,1731757839391,-24.11851158,0.00013698,2]
[342341619,1731757839401,-538.18055218,0.00013698,2]
[342341620,1731757839410,-89.6209362,0.00013698,2]
[342341621,1731757839422,-281.05910888,0.00013698,2]
[342341622,1731757839434,-132.00712148,0.00013698,2]
[342341623,1731757839443,-500.0,0.00013698,2]
[342341624,1731757839453,-506.84091497,0.00013698,2]
[342341625,1731757839463,-1941.396626,0.00013698,2]
[342341626,1731757839472,-919.85866802,0.00013698,2]
[342341638,1731757840763,-1021.53795798,0.00013698,2]
[342341640,1731757840774,-1146.21468496,0.00013698,2]
[342341668,1731757845856,-412.119992,0.00013697,2]
[342341669,1731757845936,-268.29120324,0.00013697,2]
[342341670,1731757845945,-795.18194104,0.00013698,2]
[342341671,1731757845955,-1941.396626,0.00013698,2]
[342341672,1731757845964,-1941.396626,0.00013698,2]
[342341673,1731757845973,-1941.396626,0.00013698,2]
[342341674,1731757845983,-1941.396626,0.00013698,2]
[342341675,1731757845992,-1941.396626,0.00013698,2]
[342341676,1731757846002,-1941.396626,0.00013698,2]
[342341677,1731757846011,-1941.396626,0.00013698,2]
[342341680,1731757846020,-1941.396626,0.00013698,2]
[342341682,1731757846030,-1941.396626,0.00013698,2]
[342341683,1731757846039,-1941.396626,0.00013698,2]
[342341684,1731757846049,-1941.396626,0.00013698,2]
[342341685,1731757846058,-1941.396626,0.00013698,2]
[342341686,1731757846067,-1941.396626,0.00013698,2]
[342341687,1731757846076,-1941.396626,0.00013698,2]
[342341688,1731757846085,-1941.396626,0.00013698,2]
[342341689,1731757846094,-1941.396626,0.00013698,2]
[342341690,1731757846103,-1941.396627,0.00013698,2]
[342341691,1731757846112,-500.0,0.00013698,2]
[342341692,1731757846125,-500.0,0.00013698,2]
[342341693,1731757846138,-599.81269185,0.00013698,2]
[342341694,1731757846148,-500.0,0.00013698,2]
[342341695,1731757846157,-500.0,0.00013698,2]
[342341696,1731757846166,-549.6517723,0.00013698,2]
[342341697,1731757846175,-501.83303491,0.00013698,2]
[342341698,1731757846184,-614.290382,0.00013698,2]
[342341699,1731757846194,-500.0,0.00013698,2]
[342341700,1731757846204,-500.0,0.00013698,2]
[342341701,1731757846215,-150.255,0.00013698,2]
[342341703,1731757846224,-500.0,0.00013698,2]
[342341704,1731757846233,-500.0,0.00013698,2]
[342341706,1731757846242,-500.0,0.00013698,2]
[342341707,1731757846251,-500.0,0.00013698,2]
[342341709,1731757846260,-501.84279085,0.00013698,2]
[342341710,1731757846269,-505.20184171,0.00013698,2]
[342341711,1731757846278,-500.0,0.00013698,2]
[342341712,1731757846286,-512.87445702,0.00013698,2]
[342341713,1731757846296,-500.0,0.00013698,2]
[342341715,1731757846306,-500.0,0.00013698,2]
[342341717,1731757846315,-500.0,0.00013698,2]
[342341718,1731757846324,-509.19933229,0.00013698,2]
[342341719,1731757846333,-500.0,0.00013698,2]
[342341720,1731757846342,-501.24857838,0.00013698,2]
[342341721,1731757846351,-500.0,0.00013698,2]
[342341722,1731757846360,-500.0,0.00013698,2]
[342341723,1731757846370,-623.95939952,0.00013698,2]
[342341724,1731757846380,-533.39570989,0.00013698,2]
[342341726,1731757846390,-507.29679344,0.00013698,2]
[342341728,1731757846400,-500.0,0.00013698,2]
[342341730,1731757846409,-500.0,0.00013698,2]
[342341731,1731757846417,-500.0,0.00013698,2]
[342341733,1731757846426,-500.0,0.00013698,2]
[342341735,1731757846436,-500.0,0.00013698,2]
[342341737,1731757846445,-500.0,0.00013698,2]
[342341739,1731757846454,-500.0,0.00013698,2]
[342341740,1731757846463,-500.0,0.00013698,2]
[342341741,1731757846472,-293.02001493,0.00013698,2]
[342341742,1731757846482,-505.59670376,0.00013698,2]
[342341744,1731757846491,-622.40059116,0.00013698,2]
[342341746,1731757846500,-500.0,0.00013698,2]
[342341748,1731757846510,-500.0,0.00013698,2]
[342341749,1731757846519,-151.0,0.00013698,2]
[342341750,1731757846528,-151.0,0.00013698,2]
[342341751,1731757846537,-151.0,0.00013698,2]
[342341753,1731757846547,-151.0,0.00013698,2]
[342341754,1731757846555,-151.0,0.00013698,2]
[342341755,1731757846564,-151.0,0.00013698,2]
[342341756,1731757846573,-151.0,0.00013698,2]
[342341757,1731757846583,-355.34636228,0.00013698,2]
[342341758,1731757846592,-151.0,0.00013698,2]
[342341759,1731757846601,-500.0,0.00013698,2]
[342341760,1731757846610,-151.0,0.00013698,2]
[342341761,1731757846619,-151.0,0.00013698,2]
[342341762,1731757846632,-151.0,0.00013698,2]
[342341763,1731757846641,-151.0,0.00013698,2]
[342341764,1731757846651,-151.0,0.00013698,2]
[342341765,1731757846660,-151.0,0.00013698,2]
[342341766,1731757846669,-151.0,0.00013698,2]
[342341767,1731757846679,-568.00927089,0.00013698,2]
[342341768,1731757846688,-151.0,0.00013698,2]
[342341769,1731757846697,-151.0,0.00013698,2]
[342341770,1731757846706,-151.0,0.00013698,2]
[342341771,1731757846716,-500.30258536,0.00013698,2]
[342341772,1731757846725,-314.12264292,0.00013698,2]
[342341773,1731757846734,-279.0,0.00013698,2]
[342341774,1731757846743,-500.0,0.00013698,2]
[342341775,1731757846753,-500.0,0.00013698,2]
[342341776,1731757846763,-156.76832393,0.00013698,2]
[342341777,1731757846772,-500.0,0.00013698,2]
[342341778,1731757846782,-500.0,0.00013698,2]
[342341779,1731757846791,-500.0,0.00013698,2]
[342341780,1731757846800,-500.0,0.00013698,2]
[342341782,1731757846809,-500.0,0.00013698,2]
[342341784,1731757846819,-977.58,0.00013698,2]
[342341786,1731757846828,-151.0,0.00013698,2]
[342341788,1731757846837,-569.65472568,0.00013698,2]
[342341790,1731757846846,-500.0,0.00013698,2]
[342341792,1731757846855,-500.0,0.00013698,2]
[342341794,1731757846865,-526.53,0.00013698,2]
[342341796,1731757846875,-500.0,0.00013698,2]
[342341797,1731757846885,-500.0,0.00013698,2]